bitfinex/quotes_SOLUSD_20251126
["timestamp","ask_amount","ask_price","bid_price","bid_amount"]
[1764169416842,23.74680864,136.64,136.6,25.62225475]
[1764169417026,16.308864,136.64,136.6,33.77019939]
[1764169417221,7.43794464,136.67,136.62,7.43794464]
[1764169417443,12.26994492,136.67,136.63,7.43794464]
[1764169417628,7.43794464,136.69,136.64,7.43794464]
[1764169417842,7.43794464,136.67,136.62,7.43794464]
[1764169418156,11.61794464,136.69,136.64,7.43794464]
[1764169418358,3.46,136.69,136.64,7.43794464]
[1764169418645,19.768864,136.69,136.64,8.14794464]
[1764169418847,7.43794464,136.71,136.66,33.04895004]
[1764169419041,3.46,136.7,136.66,33.04895004]
[1764169419238,16.308864,136.68,136.66,33.75895004]
[1764169419442,16.308864,136.68,136.66,26.3210054]
[1764169420045,3.46,136.7,136.66,33.75895004]
[1764169420233,10.89794464,136.7,136.66,0.71]
[1764169420428,10.89794464,136.7,136.65,33.05059383]
[1764169420630,16.308864,136.68,136.65,7.31773518]
[1764169420954,16.308864,136.68,136.64,25.61415374]
[1764169421137,23.74680864,136.68,136.64,25.61415374]
[1764169421336,16.308864,136.67,136.64,8.02850117]
[1764169421850,16.308864,136.66,136.64,7.43794464]
[1764169422044,0.72,136.73,136.65,8.14794464]
[1764169422241,3.46,136.72,136.68,7.43794464]
[1764169422472,16.308864,136.7,136.63,62.21160959]
[1764169422650,7.43794464,136.69,136.64,7.43794464]
[1764169422842,16.308864,136.68,136.65,8.14794464]
[1764169423036,7.43794464,136.72,136.67,7.43794464]
[1764169423242,3.46,136.71,136.67,7.43794464]
[1764169423541,3.46,136.71,136.67,8.14794464]
[1764169423935,3.46,136.71,136.67,0.71]
[1764169424135,10.89794464,136.71,136.67,0.71]
[1764169424657,10.89794464,136.71,136.66,25.6110054]
[1764169424838,7.43794464,136.7,136.66,7.31743011]
[1764169425350,16.308864,136.7,136.66,15.43537475]
[1764169425526,16.308864,136.69,136.66,33.72895004]
[1764169425729,16.308864,136.69,136.66,26.2910054]
[1764169425926,16.308864,136.69,136.66,25.6110054]
[1764169426232,16.308864,136.7,136.66,25.6110054]
[1764169426433,3.46,136.71,136.67,8.11794464]
[1764169426940,3.46,136.71,136.68,7.31635937]
[1764169427460,16.308864,136.69,136.66,7.31743011]
[1764169428048,7.43794464,136.72,136.67,8.11794464]
[1764169428343,16.308864,136.71,136.67,8.11794464]
[1764169428542,24.43680864,136.71,136.66,25.6110054]
[1764169428735,11.58794464,136.7,136.66,7.31743011]
[1764169428931,11.58794464,136.7,136.66,25.6110054]
[1764169429256,10.89794464,136.7,136.66,25.6110054]
[1764169429843,7.43794464,136.69,136.66,7.31743011]
[1764169430240,10.89794464,136.7,136.66,7.31743011]
[1764169430463,19.768864,136.7,136.67,8.11794464]
[1764169430633,16.308864,136.69,136.67,8.11794464]
[1764169430836,16.308864,136.7,136.68,0.68]
[1764169431049,3.46,136.72,136.69,25.60538443]
[1764169431452,3.46,136.72,136.69,7.31582412]
[1764169431650,4.15,136.72,136.68,7.3161406]
[1764169431856,3.46,136.72,136.68,33.72498368]
[1764169432049,3.46,136.72,136.69,8.11794464]
[1764169432247,7.43794464,136.76,136.7,7.43794464]
[1764169432448,3.46,136.75,136.71,7.43794464]
[1764169432663,16.308864,136.73,136.71,7.43794464]
[1764169432959,16.308864,136.73,136.7,8.11794464]
[1764169433259,8.80994492,136.72,136.68,7.31635937]
[1764169433463,7.43794464,136.71,136.67,7.31672951]
[1764169433656,7.43794464,136.71,136.66,25.73092576]
[1764169433657,7.43794464,136.69,136.64,29.87392354]
[1764169433857,3.46,136.69,136.65,33.73082425]
[1764169434743,7.43794464,136.72,136.66,8.11794464]
[1764169434944,12.26994492,136.73,136.68,7.43794464]
[1764169435161,16.308864,136.7,136.69,7.31582412]
[1764169437276,16.308864,136.7,136.68,7.31607626]
[1764169439162,9.49994492,136.69,136.65,7.3179656]
[1764169439379,16.24788956,136.67,136.61,8.00010833]
[1764169439546,3.46,136.67,136.62,7.43794464]
[1764169439742,8.80994492,136.66,136.61,25.62037917]
[1764169439976,16.308864,136.64,136.61,25.62037917]
[1764169440275,16.308864,136.64,136.61,7.32010833]
[1764169440468,16.308864,136.62,136.58,18.30368089]
[1764169440682,10.89794464,136.61,136.58,7.32171621]
[1764169440975,3.46,136.65,136.6,7.43794464]
[1764169441145,16.308864,136.62,136.58,7.32171621]
[1764169441349,3.46,136.62,136.59,8.11794464]
[1764169441557,9.49994492,136.67,136.57,7.32225232]
[1764169441558,16.308864,136.64,136.6,8.11794464]
[1764169441879,16.308864,136.64,136.6,0.68]
[1764169442177,16.308864,136.64,136.61,0.68]
[1764169442479,16.308864,136.64,136.6,0.68]
[1764169442649,16.308864,136.64,136.61,0.68]
[1764169442847,0.2,136.78,136.63,23.74680864]
[1764169443083,0.2,136.84,136.8,16.308864]
[1764169443257,0.69,136.95,136.84,34.67158462]
[1764169443585,0.2,137.02,136.85,0.68]
[1764169443586,0.69,137.01,136.85,0.68]
[1764169443882,1.99999999,137.14,136.91,1.99999999]
[1764169444081,1.99999999,137.14,136.86,0.68]
[1764169444082,1.99999999,137.03,136.86,0.68]
[1764169444390,7.43794464,136.91,136.86,0.68]
[1764169444554,7.43794464,136.87,136.81,0.68]
[1764169444759,16.308864,136.83,136.79,7.31041399]
[1764169445058,23.74680864,136.8,136.74,0.68]
[1764169445269,7.43794464,136.8,136.74,8.11794464]
[1764169445561,7.43794464,136.79,136.75,7.31261425]
[1764169445755,16.308864,136.8,136.72,0.72]
[1764169445756,7.43794464,136.76,136.72,0.72]
[1764169445985,0.2,136.83,136.75,7.43794464]
[1764169446157,7.63794464,136.83,136.77,7.43794464]
[1764169446360,0.2,136.83,136.78,7.43794464]
[1764169446559,0.2,136.83,136.78,11.23882045]
[1764169446758,0.2,136.83,136.79,11.95882045]
[1764169446956,11.43882045,136.83,136.77,11.23882045]
[1764169447189,16.508864,136.83,136.77,11.95882045]
[1764169447572,27.74768445,136.83,136.78,7.31101038]
[1764169447764,16.308864,136.8,136.76,7.31174731]
[1764169448087,16.308864,136.8,136.7,3.821]
[1764169448088,11.23882045,136.77,136.7,3.821]
[1764169448267,16.308864,136.71,136.57,7.32225232]
[1764169448460,16.308864,136.71,136.46,0.1]
[1764169448461,16.308864,136.68,136.49,1.99999999]
[1764169448662,3.46,136.67,136.5,0.72]
[1764169448886,3.46,136.66,136.53,1.99999999]
[1764169449073,16.308864,136.67,136.57,27.54768445]
[1764169449381,11.95882045,136.72,136.57,5.45999999]
[1764169449686,20.04876537,136.69,136.62,11.23882045]
[1764169449864,20.04876537,136.69,136.62,11.95882045]
[1764169450574,11.23882045,136.69,136.62,11.95882045]
[1764169450777,11.23882045,136.71,136.64,11.23882045]
[1764169450959,20.04876537,136.7,136.63,11.95882045]
[1764169451154,11.23882045,136.69,136.63,0.72]
[1764169451376,11.23882045,136.68,136.62,19.768864]
[1764169451575,11.23882045,136.68,136.63,7.31903681]
[1764169451881,11.23882045,136.7,136.63,37.57544929]
[1764169452066,16.308864,136.71,136.64,11.95882045]
[1764169452268,16.308864,136.71,136.65,11.23882045]
[1764169452580,11.23882045,136.72,136.66,11.23882045]
[1764169452783,11.23882045,136.72,136.66,0.72]
[1764169452976,16.308864,136.72,136.66,0.72]
[1764169453291,16.308864,136.72,136.63,25.61662884]
[1764169453292,9.52994492,136.71,136.63,25.61662884]
[1764169453501,9.52994492,136.71,136.55,2.73233246]
[1764169453502,11.23882045,136.65,136.56,0.72]
[1764169453658,8.80994492,136.52,136.47,7.32761779]
[1764169453983,8.80994492,136.52,136.32,24.68657237]
[1764169453984,16.308864,136.51,136.42,0.72]
[1764169454285,16.308864,136.51,136.39,0.66]
[1764169454286,3.46,136.5,136.39,0.66]
[1764169454489,11.23882045,136.47,136.39,0.66]
[1764169454687,11.23882045,136.47,136.33,36.67404431]
[1764169454871,0.67,136.5,136.41,11.23882045]
[1764169455072,11.23882045,136.5,136.43,37.65300208]
[1764169455377,20.04876537,136.54,136.46,16.308864]
[1764169455592,11.23882045,136.53,136.47,18.56643824]
[1764169455757,20.04876537,136.52,136.47,7.32761779]
[1764169455964,11.23882045,136.51,136.47,7.32761779]
[1764169456161,11.23882045,136.53,136.48,0.66]
[1764169456588,27.54768445,136.54,136.48,0.66]
[1764169456984,11.23882045,136.53,136.48,0.66]
[1764169457261,11.23882045,136.52,136.47,7.32761779]
[1764169457477,11.23882045,136.52,136.45,28.20768445]
[1764169457478,8.80994492,136.53,136.46,25.64781566]
[1764169457679,11.23882045,136.53,136.47,11.23882045]
[1764169457869,11.23882045,136.53,136.46,36.88663611]
[1764169458078,11.23882045,136.53,136.47,0.66]
[1764169458690,11.23882045,136.53,136.47,11.89882045]
[1764169458892,11.23882045,136.53,136.47,0.66]
[1764169459170,11.23882045,136.52,136.46,25.64781566]
[1764169459579,11.23882045,136.52,136.46,26.30781566]
[1764169459867,20.04876537,136.53,136.46,37.54663611]
[1764169460272,16.308864,136.54,136.48,11.23882045]
[1764169460572,20.04876537,136.53,136.47,0.66]
[1764169460772,27.54768445,136.5,136.46,7.32815477]
[1764169460989,11.23882045,136.48,136.43,0.76]
[1764169461171,0.67,136.49,136.43,7.42929224]
[1764169461490,11.23882045,136.48,136.43,8.08929224]
[1764169461690,11.23882045,136.48,136.43,26.41370769]
[1764169461993,25.11880892,136.5,136.43,26.41370769]
[1764169461994,16.308864,136.5,136.44,11.89882045]
[1764169462201,0.67,136.54,136.45,11.52314359]
[1764169462402,11.23882045,136.52,136.45,15.35882045]
[1764169462605,8.80994492,136.57,136.48,11.23882045]
[1764169462806,11.23882045,136.54,136.46,26.06313206]
[1764169463105,11.23882045,136.54,136.47,11.89882045]
[1764169463595,11.23882045,136.54,136.48,25.64478311]
[1764169463974,20.04876537,136.52,136.48,7.32708089]
[1764169464199,11.23882045,136.51,136.48,7.32708089]
[1764169464713,13.10509319,136.5,136.47,7.32760067]
[1764169465599,13.10509319,136.51,136.47,7.32760067]
[1764169465908,8.80994492,136.52,136.45,39.41427799]
[1764169466205,16.308864,136.51,136.46,13.76509319]
[1764169466412,16.56509319,136.53,136.47,13.10509319]
[1764169466707,12.9783185,136.54,136.48,13.6383185]
[1764169467085,12.9783185,136.54,136.48,0.66]
[1764169467280,12.9783185,136.52,136.46,16.4383185]
[1764169467481,12.9783185,136.52,136.46,17.0983185]
[1764169467681,16.308864,136.55,136.49,12.9783185]
[1764169467985,12.9783185,136.55,136.5,7.32600732]
[1764169468183,16.308864,136.54,136.5,7.32600732]
[1764169468491,16.308864,136.54,136.51,0.66]
[1764169468805,16.308864,136.54,136.5,26.30102563]
[1764169468976,29.2871825,136.55,136.5,26.30102563]
[1764169469601,13.12048007,136.6,136.51,13.6383185]
[1764169469602,12.26994492,136.6,136.51,13.6383185]
[1764169469782,29.2871825,136.58,136.51,13.6383185]
[1764169469983,12.9783185,136.56,136.52,25.63726925]
[1764169470501,12.9783185,136.57,136.52,26.29726925]
[1764169470700,12.9783185,136.58,136.53,0.66]
[1764169470900,29.2871825,136.6,136.53,13.6383185]
[1764169471080,12.9783185,136.6,136.54,12.9783185]
[1764169471274,12.9783185,136.6,136.54,13.6383185]
[1764169471473,12.9783185,136.6,136.54,0.66]
[1764169472214,12.9783185,136.6,136.55,25.63163675]
[1764169472382,3.46,136.61,136.55,25.63163675]
[1764169472383,12.9783185,136.61,136.55,25.63163675]
[1764169472792,42.22712742,136.62,136.56,12.9783185]
[1764169473006,19.768864,136.62,136.56,13.6383185]
[1764169473198,32.7471825,136.62,136.56,13.6383185]
[1764169473690,12.9783185,136.64,136.58,12.9783185]
[1764169473880,12.9783185,136.63,136.57,29.9471825]
[1764169474085,12.9783185,136.63,136.58,25.62600673]
[1764169474279,8.80994492,136.64,136.58,25.62600673]
[1764169474498,12.9783185,136.63,136.58,7.32171621]
[1764169474801,12.9783185,136.59,136.55,7.32332478]
[1764169475507,12.9783185,136.58,136.55,7.32332478]
[1764169476608,12.9783185,136.58,136.46,1.99999999]
[1764169476609,16.308864,136.46,136.38,0.1]
[1764169476782,25.40313206,136.41,136.3,0.66]
[1764169477117,0.28432314,136.27,136.26,0.1]
[1764169477315,0.28432314,136.27,136.21,0.1]
[1764169477316,12.9783185,136.27,136.21,0.1]
[1764169477607,0.67,136.29,136.21,8.10129764]
[1764169477813,12.9783185,136.23,136.14,3.46]
[1764169478013,0.67,136.28,136.15,1.99999999]
[1764169478223,3.46,136.32,136.2,12.9783185]
[1764169478428,0.67,136.35,136.28,12.9783185]
[1764169478429,8.80994492,136.34,136.28,12.9783185]
[1764169478585,8.80994492,136.35,136.29,12.9783185]
[1764169478912,16.308864,136.35,136.31,12.9783185]
[1764169479117,21.78826342,136.39,136.33,12.9783185]
[1764169479410,21.78826342,136.39,136.31,19.768864]
[1764169479605,51.99999999,136.47,136.42,43.87193701]
[1764169479815,16.308864,136.43,136.42,43.87193701]
[1764169480192,16.45102557,136.43,136.42,43.87193701]
[1764169480394,16.308864,136.43,136.42,43.87193701]
[1764169480818,29.57150564,136.43,136.42,43.87193701]
[1764169481006,16.59318714,136.43,136.42,43.87193701]
[1764169481214,29.57150564,136.43,136.42,43.87193701]
[1764169481511,38.97145056,136.43,136.42,43.87193701]
[1764169482400,46.30121674,136.43,136.42,43.87193701]
[1764169483520,16.308864,136.35,136.3,0.66]
[1764169483895,12.9783185,136.34,136.3,0.66]
[1764169484200,16.308864,136.24,136.14,0.67]
[1764169484507,18.30886399,136.28,136.08,3.83149837]
[1764169484508,16.308864,136.12,136.08,3.83149837]
[1764169484698,12.9783185,136.14,136.05,11.47984274]
[1764169484900,16.308864,136.11,136.05,25.72543994]
[1764169485198,3.46,136.17,136.1,12.9783185]
[1764169485397,16.308864,136.15,136.12,12.9783185]
[1764169485596,16.308864,136.17,136.14,12.9783185]
[1764169485796,16.308864,136.17,136.1,12.9783185]
[1764169485797,3.46,136.24,136.1,12.9783185]
[1764169486008,0.59,136.3,136.21,12.9783185]
[1764169486294,0.59,136.29,136.2,25.69750366]
[1764169486515,16.308864,136.25,136.22,12.9783185]
[1764169487016,12.9783185,136.28,136.2,25.69750366]
[1764169487316,12.9783185,136.27,136.21,12.9783185]
[1764169487515,12.9783185,136.29,136.23,12.9783185]
[1764169487817,16.4383185,136.31,136.25,12.9783185]
[1764169488116,16.4383185,136.31,136.22,4.13]
[1764169488117,12.9783185,136.33,136.27,12.9783185]
[1764169488289,12.9783185,136.29,136.2,36.71071953]
[1764169488490,101.99999999,136.39,136.16,18.35954306]
[1764169488491,16.308864,136.22,136.16,18.35954306]
[1764169488714,19.768864,136.24,136.15,7.34480617]
[1764169488923,13.44219339,136.19,136.13,7.34591934]
[1764169489120,13.15787025,136.21,136.15,13.15787025]
[1764169489333,3.46,136.24,136.17,13.15787025]
[1764169489633,16.308864,136.24,136.21,13.15787025]
[1764169489916,16.308864,136.25,136.23,13.15787025]
[1764169490114,16.63787025,136.3,136.23,13.15787025]
[1764169490614,16.308864,136.27,136.24,25.68995889]
[1764169490924,16.308864,136.26,136.24,25.68995889]
[1764169491432,29.46673425,136.28,136.24,7.33998825]
[1764169491629,16.308864,136.28,136.24,7.33998825]
[1764169491796,29.46673425,136.28,136.24,7.33998825]
[1764169491993,16.308864,136.28,136.24,25.68995889]
[1764169492221,16.308864,136.25,136.22,7.3406652]
[1764169492610,16.308864,136.25,136.22,26.36333]
[1764169492914,16.308864,136.25,136.14,1.99999999]
[1764169492915,16.308864,136.2,136.12,18.36614751]
[1764169493098,16.308864,136.18,136.14,0.67]
[1764169493488,16.308864,136.18,136.14,13.82787025]
[1764169493994,0.59,136.22,136.12,25.71260651]
[1764169493995,16.308864,136.19,136.17,13.15787025]
[1764169494196,16.308864,136.19,136.17,13.82787025]
[1764169494538,12.57426806,136.24,136.19,7.34268301]
[1764169494539,16.308864,136.21,136.19,7.34268301]
[1764169494816,16.63787025,136.27,136.2,13.15787025]
[1764169495053,8.80994492,136.28,136.22,13.15787025]
[1764169495191,13.15787025,136.27,136.21,13.15787025]
[1764169495394,16.308864,136.24,136.21,13.15787025]
[1764169495594,13.15787025,136.27,136.2,4.15]
[1764169495825,16.14739332,136.29,136.2,0.67]
[1764169495826,13.15787025,136.25,136.2,0.67]
[1764169496209,29.46673425,136.26,136.2,13.82787025]
[1764169496409,29.46673425,136.26,136.21,38.8534873]
[1764169497025,29.46673425,136.26,136.21,39.5234873]
[1764169497828,29.46673425,136.26,136.21,25.69561705]
[1764169498124,16.308864,136.18,136.14,7.34537975]
[1764169498504,13.15787025,136.17,136.12,19.03586099]
[1764169498824,29.46673425,136.2,136.14,13.15787025]
[1764169499194,16.308864,136.2,136.14,13.15787025]
[1764169499520,16.308864,136.2,136.15,13.15787025]
[1764169499711,16.308864,136.2,136.15,13.82787025]
[1764169499920,16.308864,136.2,136.15,17.30787025]
[1764169500122,13.15787025,136.24,136.18,13.15787025]
[1764169500413,19.62873028,136.27,136.19,25.69939055]
[1764169500604,16.308864,136.24,136.19,38.8572608]
[1764169500803,7.33621891,136.31,136.2,13.82787025]
[1764169501010,13.15787025,136.26,136.21,13.15787025]
[1764169501218,13.15787025,136.25,136.2,0.67]
[1764169501436,13.15787025,136.24,136.2,0.67]
[1764169501630,16.308864,136.26,136.2,0.67]
[1764169501820,13.15787025,136.24,136.2,0.67]
[1764169502017,13.15787025,136.24,136.19,25.69939055]
[1764169502220,13.15787025,136.24,136.19,7.34268301]
[1764169502444,16.308864,136.23,136.19,7.34268301]
[1764169502743,29.46673425,136.23,136.19,7.34268301]
[1764169503246,16.308864,136.17,136.1,49.89393826]
[1764169503431,13.15787025,136.2,136.14,13.15787025]
[1764169503635,13.15787025,136.19,136.13,13.15787025]
[1764169503848,0.59,136.18,136.11,7.34699875]
[1764169504049,29.46673425,136.16,136.11,0.67]
[1764169504236,13.15787025,136.14,136.11,7.34694411]
[1764169504439,13.15787025,136.13,136.08,11.47855322]
[1764169504638,13.15787025,136.13,136.08,29.85009936]
[1764169504829,13.15787025,136.14,136.09,0.67]
[1764169505025,13.15787025,136.13,136.09,0.67]
[1764169505432,16.308864,136.16,136.1,13.15787025]
[1764169505631,19.768864,136.18,136.1,3.46]
[1764169505847,19.768864,136.18,136.12,13.15787025]
[1764169506252,13.15787025,136.17,136.13,7.34591934]
[1764169506554,29.46673425,136.14,136.1,18.36783041]
[1764169506743,13.15787025,136.11,136.07,7.34915852]
[1764169506946,13.15787025,136.12,136.07,8.01915852]
[1764169507251,3.46,136.14,136.08,0.67]
[1764169507471,13.15787025,136.13,136.08,0.67]
[1764169507626,13.15787025,136.12,136.07,25.72205482]
[1764169507828,13.15787025,136.13,136.07,39.54992507]
[1764169508041,13.15787025,136.13,136.08,13.15787025]
[1764169508355,16.308864,136.14,136.09,25.71827466]
[1764169508646,13.05469235,136.14,136.09,25.71827466]
[1764169508829,13.05469235,136.13,136.09,25.71827466]
[1764169509257,13.05469235,136.14,136.09,26.38827466]
[1764169509458,3.46,136.18,136.11,13.05469235]
[1764169509626,16.51469235,136.18,136.12,13.05469235]
[1764169509822,13.05469235,136.16,136.11,4.13]
[1764169510027,19.768864,136.18,136.09,62.45866704]
[1764169510028,13.05469235,136.14,136.09,25.71827466]
[1764169510444,13.05469235,136.14,136.09,39.44296701]
[1764169510640,16.308864,136.15,136.09,39.44296701]
[1764169510847,29.36355635,136.15,136.09,39.44296701]
[1764169511254,16.308864,136.15,136.1,0.67]
[1764169511426,16.308864,136.15,136.11,13.05469235]
[1764169511860,16.308864,136.15,136.11,13.72469235]
[1764169512170,16.308864,136.15,136.12,13.72469235]
[1764169512465,16.51469235,136.18,136.13,20.40061169]
[1764169512756,3.46,136.18,136.13,7.34591934]
[1764169512956,13.05469235,136.15,136.09,13.05469235]
[1764169513153,13.05469235,136.15,136.1,18.36884643]
[1764169513332,8.80994492,136.16,136.08,32.09569821]
[1764169513333,13.05469235,136.13,136.08,32.09569821]
[1764169513527,13.05469235,136.13,136.08,18.37100586]
[1764169513762,13.05469235,136.18,136.12,13.05469235]
[1764169514062,13.05469235,136.2,136.15,13.05469235]
[1764169514362,13.05469235,136.22,136.17,13.05469235]
[1764169514659,13.05469235,136.23,136.18,13.05469235]
[1764169514863,16.51469235,136.25,136.19,13.05469235]
[1764169515159,16.51469235,136.25,136.18,13.77469235]
[1764169515160,3.46,136.25,136.18,13.77469235]
[1764169515340,13.05469235,136.24,136.18,0.72]
[1764169515543,13.05469235,136.24,136.19,13.77469235]
[1764169516261,13.05469235,136.24,136.19,13.05469235]
[1764169516445,7.92514266,136.33,136.23,13.05469235]
[1764169516762,13.05469235,136.29,136.23,13.77469235]
[1764169516942,13.05469235,136.26,136.22,3.46]
[1764169517146,13.05469235,136.25,136.2,13.77469235]
[1764169517460,13.05469235,136.26,136.21,13.77469235]
[1764169517661,13.05469235,136.26,136.2,13.05469235]
[1764169517860,29.36355635,136.27,136.21,13.05469235]
[1764169518062,16.308864,136.27,136.21,13.77469235]
[1764169518235,29.36355635,136.27,136.21,13.77469235]
[1764169518543,13.05469235,136.26,136.22,25.69373072]
[1764169518855,29.36355635,136.27,136.22,25.69373072]
[1764169519048,13.05469235,136.25,136.22,7.34106592]
[1764169519661,13.05469235,136.23,136.21,7.34141742]
[1764169519851,16.308864,136.24,136.2,0.72]
[1764169520077,29.36355635,136.25,136.21,0.72]
[1764169520557,29.36355635,136.25,136.19,25.69939055]
[1764169520558,13.05469235,136.24,136.19,7.34268301]
[1764169520859,13.05469235,136.24,136.14,13.77469235]
[1764169520860,13.05469235,136.2,136.14,13.77469235]
[1764169521038,13.05469235,136.2,136.14,17.23469235]
[1764169521361,13.05469235,136.21,136.15,13.77469235]
[1764169521567,29.36355635,136.23,136.18,13.05469235]
[1764169521940,13.05469235,136.24,136.19,0.72]
[1764169522156,29.36355635,136.24,136.19,0.72]
[1764169522340,16.308864,136.24,136.19,0.72]
[1764169522539,13.05469235,136.23,136.2,7.3421439]
[1764169522766,29.36355635,136.24,136.2,7.3421439]
[1764169522942,29.36355635,136.24,136.2,26.41750366]
[1764169523263,29.36355635,136.24,136.2,8.0621439]
[1764169523464,7.33896398,136.26,136.16,7.34430082]
[1764169523465,13.05469235,136.22,136.16,7.34430082]
[1764169523649,13.05469235,136.21,136.16,8.06430082]
[1764169523966,13.05469235,136.21,136.16,21.11899317]
[1764169524150,13.05469235,136.21,136.17,0.72]
[1764169524667,13.05469235,136.21,136.18,7.3432222]
[1764169525070,13.05469235,136.21,136.18,8.0632222]
[1764169525264,13.05469235,136.21,136.18,7.3432222]
[1764169525473,13.05469235,136.19,136.16,7.34430082]
[1764169525766,13.05469235,136.19,136.14,20.4000721]
[1764169525954,13.05469235,136.2,136.15,13.77469235]
[1764169526155,13.05469235,136.19,136.14,7.34537975]
[1764169526351,24.24058669,136.21,136.14,7.34537975]
[1764169526554,7.49482075,136.17,136.14,7.34537975]
[1764169526864,16.308864,136.12,136.07,0.72]
[1764169527042,7.49482075,136.11,136.07,0.72]
[1764169527240,0.59,136.18,136.09,7.49482075]
[1764169527436,7.49482075,136.16,136.11,7.49482075]
[1764169527663,7.49482075,136.14,136.06,3.56]
[1764169527865,7.49482075,136.11,136.07,7.34904182]
[1764169528065,7.49482075,136.11,136.07,25.72193812]
[1764169528249,16.308864,136.13,136.07,26.44193812]
[1764169528250,7.49482075,136.12,136.07,26.44193812]
[1764169528441,7.49482075,136.11,136.07,25.72193812]
[1764169528869,8.80994492,136.17,136.08,8.21482075]
[1764169529166,7.49482075,136.15,136.08,0.72]
[1764169529371,7.49482075,136.14,136.09,8.21482075]
[1764169529750,7.49482075,136.15,136.1,0.72]
[1764169529945,16.308864,136.16,136.11,7.34699875]
[1764169530172,8.80994492,136.15,136.08,0.72]
[1764169530478,7.49482075,136.15,136.1,7.49482075]
[1764169530642,7.49482075,136.15,136.11,0.72]
[1764169530841,3.46,136.17,136.12,7.49482075]
[1764169530842,7.49482075,136.17,136.12,7.49482075]
[1764169531058,7.49482075,136.16,136.11,8.21482075]
[1764169531268,7.49482075,136.15,136.11,0.72]
[1764169531868,7.49482075,136.12,136.07,7.34915852]
[1764169532055,7.49482075,136.09,136.06,0.1]
[1764169532256,7.49482075,136.1,136.06,0.82]
[1764169533148,7.34612859,136.13,136.06,0.1]
[1764169533149,7.49482075,136.08,136.06,0.1]
[1764169533354,7.49482075,136.07,136.06,0.1]
[1764169533581,7.49482075,136.08,136.06,0.1]
[1764169533767,7.49482075,136.07,136.06,0.1]
[1764169533948,7.49482075,136.08,136.06,0.1]
[1764169534152,7.49482075,136.07,136.06,0.1]
[1764169534551,7.49482075,136.08,136.06,0.1]
[1764169535279,7.49482075,136.07,136.06,0.1]
[1764169536071,3.46,136.1,136.06,0.1]
[1764169536271,7.49482075,136.07,136.06,0.1]
[1764169536952,7.49482075,136.08,136.06,0.1]
[1764169537359,16.89476567,136.07,136.06,0.1]
[1764169537782,23.80368475,136.07,136.06,0.1]
[1764169537973,7.49482075,136.08,136.06,0.1]
[1764169538174,7.49482075,136.07,136.06,0.1]
[1764169538362,7.49482075,136.08,136.06,0.1]
[1764169538682,7.49482075,136.07,136.06,0.1]
[1764169539381,8.08482075,136.07,136.06,0.1]
[1764169539684,7.49482075,136.07,136.06,0.1]
[1764169540093,7.92998825,136.24,136.08,25.26097049]
[1764169540284,33.16970337,136.32,136.16,7.49482075]
[1764169540484,0.59,136.28,136.21,7.49482075]
[1764169540684,0.59,136.32,136.25,7.49482075]
[1764169540985,7.49482075,136.27,136.22,8.21482075]
[1764169541167,7.49482075,136.27,136.23,0.72]
[1764169541687,16.308864,136.21,136.08,9.49482074]
[1764169541864,16.308864,136.21,136.17,7.49482075]
[1764169542064,7.49482075,136.23,136.19,7.34268301]
[1764169542265,7.49482075,136.24,136.19,7.49482075]
[1764169542463,7.49482075,136.26,136.21,7.49482075]
[1764169542776,7.49482075,136.27,136.22,7.49482075]
[1764169542965,7.33764036,136.29,136.2,0.72]
[1764169543168,7.49482075,136.26,136.21,7.49482075]
[1764169543382,23.80368475,136.26,136.21,7.49482075]
[1764169543686,7.49482075,136.24,136.19,8.21482075]
[1764169544067,7.49482075,136.23,136.19,8.06260443]
[1764169544276,8.95210649,136.29,136.22,7.49482075]
[1764169544277,3.46,136.29,136.22,7.49482075]
[1764169544476,3.46,136.29,136.23,7.49482075]
[1764169544687,50.0,136.46,136.28,7.49482075]
[1764169544861,18.31761147,136.49,136.33,16.308864]
[1764169545063,7.32600732,136.5,136.27,16.978864]
[1764169545262,3.46,136.5,136.35,16.308864]
[1764169545565,0.59,136.54,136.44,7.49482075]
[1764169545781,7.49482075,136.48,136.43,0.67]
[1764169546161,0.59,136.47,136.35,8.95210649]
[1764169546474,7.49482075,136.46,136.41,7.49482075]
[1764169546668,23.80368475,136.46,136.4,7.49482075]
[1764169547060,23.80368475,136.46,136.38,0.28432314]
[1764169547061,7.49482075,136.42,136.32,7.49482075]
[1764169547264,7.49482075,136.43,136.36,0.67]